bitfinex-derivatives/quotes_BNBF0:USTF0_20250630
["timestamp","ask_amount","ask_price","bid_price","bid_amount"]
[1751297644643,0.26574724,655.5,654.11,1.07487119]
[1751297644937,0.26574724,655.5,654.12,1.07487119]
[1751297645142,0.26574724,655.5,654.13,1.07487119]
[1751297645439,0.26574724,655.5,654.14,1.07487119]
[1751297645638,0.26574724,655.5,654.15,1.07487119]
[1751297645837,0.26574724,655.5,654.16,1.07487119]
[1751297646039,0.26574724,655.5,654.17,1.07487119]
[1751297646238,0.26574724,655.5,654.18,1.07487119]
[1751297646443,0.26574724,655.5,654.19,1.07487119]
[1751297646638,0.26574724,655.5,654.2,1.07487119]
[1751297646840,0.26574724,655.5,653.95,2.068]
[1751297647039,0.26574724,655.5,653.96,1.07423918]
[1751297647341,0.26574724,655.5,653.97,1.07423918]
[1751297647542,0.26574724,655.5,653.98,1.07423918]
[1751297647742,0.26574724,655.5,653.99,3.76623918]
[1751297647946,0.26574724,655.5,654.0,1.07423918]
[1751297648144,0.26574724,655.5,654.01,1.07423918]
[1751297648345,0.26574724,655.5,654.02,1.07423918]
[1751297648646,0.26574724,655.5,654.03,1.07423918]
[1751297648846,0.26574724,655.5,654.04,1.07423918]
[1751297649042,0.26574724,655.5,654.05,1.07423918]
[1751297649243,0.26574724,655.5,654.06,1.07423918]
[1751297649443,0.26574724,655.5,654.07,1.07423918]
[1751297649742,0.26574724,655.5,654.08,1.07423918]
[1751297650044,0.26574724,655.5,654.09,1.07423918]
[1751297650246,0.26574724,655.5,654.1,1.07423918]
[1751297650447,0.26574724,655.5,654.11,1.07423918]
[1751297650647,0.26574724,655.5,654.12,1.07423918]
[1751297650841,0.26574724,655.5,654.13,1.07423918]
[1751297651046,0.26574724,655.5,654.14,1.07423918]
[1751297651248,0.26574724,655.5,654.15,1.07423918]
[1751297651449,0.26574724,655.5,654.16,1.07423918]
[1751297651647,0.26574724,655.5,654.17,1.07423918]
[1751297651848,0.26574724,655.5,654.18,1.07423918]
[1751297652145,0.26574724,655.5,653.99,2.692]
[1751297652146,0.26574724,655.5,654.19,1.07423918]
[1751297652448,0.26574724,655.5,654.2,1.07423918]
[1751297652648,0.26574724,655.5,654.21,1.07423918]
[1751297652949,4.06746135,655.5,653.99,2.692]
[1751297653150,4.06746135,655.5,654.0,1.07475265]
[1751297653346,0.26574724,655.5,654.01,1.07475265]
[1751297653550,0.26574724,655.5,654.02,1.07475265]
[1751297653750,0.26574724,655.5,654.03,1.07475265]
[1751297654049,0.26574724,655.5,654.04,1.07475265]
[1751297654249,0.26574724,655.5,654.05,1.07475265]
[1751297654450,0.26574724,655.5,653.99,2.692]
[1751297654451,0.26574724,655.5,654.06,1.07475265]
[1751297654651,0.26574724,655.5,654.07,1.07475265]
[1751297654848,0.26574724,655.5,654.08,1.07475265]
[1751297655048,0.26574724,655.5,654.09,1.07475265]
[1751297655258,0.26574724,655.5,654.1,1.07475265]
[1751297655454,0.26574724,655.5,654.11,1.07475265]
[1751297655653,0.26574724,655.5,654.12,1.07475265]
[1751297655949,0.26574724,655.5,654.13,1.07475265]
[1751297656153,0.26574724,655.5,654.14,1.07475265]
[1751297656352,0.26574724,655.5,654.15,1.07475265]
[1751297656553,0.26574724,655.5,653.99,2.692]
[1751297656853,0.26574724,655.5,654.0,1.07509616]
[1751297657053,0.26574724,655.5,654.01,1.07509616]
[1751297657251,0.26574724,655.5,654.02,1.07509616]
[1751297657455,4.06746135,655.5,654.03,1.07509616]
[1751297657651,4.06746135,655.5,654.04,1.07509616]
[1751297657951,0.26574724,655.5,654.05,1.07509616]
[1751297658151,0.26574724,655.5,654.06,1.07509616]
[1751297658350,0.26574724,655.5,654.07,1.07509616]
[1751297658553,3.80171411,655.45,654.08,1.07509616]
[1751297658753,3.80171411,655.45,654.09,1.07509616]
[1751297658950,3.80171411,655.45,654.1,1.07509616]
[1751297659155,3.80171411,655.38,654.11,1.07509616]
[1751297659353,3.80171411,655.38,654.12,1.07509616]
[1751297659552,4.06746135,655.5,654.13,1.07509616]
[1751297659752,4.06746135,655.5,654.14,1.07509616]
[1751297659952,4.06746135,655.5,654.15,1.07509616]
[1751297660150,4.06746135,655.5,653.99,2.692]
[1751297660452,4.06746135,655.5,654.0,1.07469831]
[1751297660655,4.06746135,655.5,654.01,1.07469831]
[1751297660853,4.06746135,655.5,654.02,1.07469831]
[1751297661156,4.06746135,655.5,654.03,1.07469831]
[1751297661357,4.06746135,655.5,654.04,1.07469831]
[1751297661554,4.06746135,655.5,654.05,1.07469831]
[1751297661754,4.06746135,655.5,654.06,1.07469831]
[1751297661955,4.06746135,655.5,654.07,1.07469831]
[1751297662160,4.06746135,655.5,654.08,1.07469831]
[1751297662355,4.06746135,655.5,654.09,1.07469831]
[1751297662556,4.06746135,655.5,654.1,1.07469831]
[1751297662762,0.26574724,655.5,654.11,1.07469831]
[1751297662963,0.26574724,655.5,654.12,1.07469831]
[1751297663161,3.80171411,655.44,654.13,1.07469831]
[1751297663364,3.80171411,655.44,654.14,1.07469831]
[1751297663560,3.80171411,655.44,654.15,1.07469831]
[1751297663761,3.80171411,655.47,654.16,1.07469831]
[1751297664063,3.80171411,655.47,654.17,1.07469831]
[1751297664263,3.80171411,655.46,654.18,1.07469831]
[1751297664462,3.80171411,655.46,654.19,1.07469831]
[1751297664660,3.80171411,655.46,653.99,2.692]
[1751297664864,3.80171411,655.46,654.0,1.0746382]
[1751297665062,3.80171411,655.46,654.01,1.0746382]
[1751297665262,2.28712442,654.83,654.02,1.0746382]
[1751297665465,2.28712442,654.83,654.03,1.0746382]
[1751297665661,2.28712442,654.83,654.04,1.0746382]
[1751297665866,2.28712442,654.86,654.05,1.0746382]
[1751297666163,2.28712442,654.86,654.06,1.0746382]
[1751297666367,2.28712442,654.85,654.07,1.0746382]
[1751297666563,2.28712442,654.85,654.08,1.0746382]
[1751297666866,2.28712442,654.92,654.09,1.0746382]
[1751297667168,2.28712442,654.92,654.0,1.63]
[1751297667169,2.28712442,654.9,654.1,1.0746382]
[1751297667366,2.28712442,654.9,654.11,1.0746382]
[1751297667569,2.28712442,654.9,654.12,1.0746382]
[1751297667765,2.28712442,654.91,654.13,1.0746382]
[1751297668068,2.28712442,654.9,654.14,1.0746382]
[1751297668263,2.28712442,654.9,654.15,1.0746382]
[1751297668465,2.28712442,654.9,654.16,1.0746382]
[1751297668664,2.28712442,654.9,654.17,1.0746382]
[1751297668864,2.28712442,654.9,654.18,1.0746382]
[1751297669064,2.28712442,654.98,654.19,1.0746382]
[1751297669268,2.28712442,654.98,654.2,1.0746382]
[1751297669468,2.28712442,654.98,654.21,1.0746382]
[1751297669670,2.28712442,654.98,654.22,1.0746382]
[1751297669870,2.28712442,654.98,654.0,1.63]
[1751297670068,2.28712442,654.98,654.01,1.07458067]
[1751297670267,2.28712442,654.98,654.0,1.63]
[1751297670268,2.28712442,654.97,654.02,1.07458067]
[1751297670471,2.28712442,654.97,654.0,1.63]
[1751297670472,2.28712442,654.97,654.03,1.07458067]
[1751297670672,2.28712442,654.96,654.04,1.07458067]
[1751297670972,2.28712442,654.96,654.05,1.07458067]
[1751297671172,2.28712442,654.96,654.06,1.07458067]
[1751297671472,2.28712442,654.96,654.07,1.07458067]
[1751297671672,2.28712442,654.96,654.08,1.07458067]
[1751297671869,2.28712442,654.96,654.09,1.07458067]
[1751297672069,2.28712442,654.96,654.1,1.07458067]
[1751297672373,2.28712442,654.96,654.11,1.07458067]
[1751297672570,2.28712442,654.96,654.12,1.07458067]
[1751297672773,2.28712442,654.96,654.13,1.07458067]
[1751297672974,2.28712442,654.96,654.14,1.07458067]
[1751297673175,2.28712442,654.95,654.15,1.07458067]
[1751297673470,2.28712442,654.95,654.16,1.07458067]
[1751297673673,2.28712442,654.95,654.17,1.07458067]
[1751297673970,2.28712442,654.95,654.18,1.07458067]
[1751297674169,2.28712442,654.95,654.19,1.07458067]
[1751297674369,2.28712442,654.95,654.2,1.07458067]
[1751297674572,2.28712442,654.95,654.21,1.07458067]
[1751297674771,2.28712442,654.95,654.22,1.07458067]
[1751297674969,2.28712442,654.95,654.23,1.07458067]
[1751297675172,2.28712442,654.95,654.24,1.07458067]
[1751297675372,2.28712442,654.95,654.04,2.313]
[1751297675571,2.28712442,654.95,654.05,1.07510146]
[1751297675775,2.28712442,654.94,654.06,1.07510146]
[1751297676075,2.28712442,654.94,654.07,1.07510146]
[1751297676275,2.28712442,654.94,654.08,1.07510146]
[1751297676476,2.28712442,654.94,654.09,1.07510146]
[1751297676678,2.28712442,654.92,654.1,1.07510146]
[1751297676872,2.28712442,654.91,654.11,1.07510146]
[1751297677072,2.28712442,654.91,654.12,1.07510146]
[1751297677276,2.28712442,654.91,654.13,1.07510146]
[1751297677477,2.28712442,654.92,654.14,1.07510146]
[1751297677776,2.28712442,654.91,654.15,1.07510146]
[1751297677977,2.28712442,654.91,654.16,1.07510146]
[1751297678274,2.28712442,654.92,654.17,1.07510146]
[1751297678479,2.28712442,654.92,654.18,1.07510146]
[1751297678674,2.28712442,654.92,654.19,1.07510146]
[1751297678875,2.28712442,654.79,654.2,1.07510146]
[1751297679180,2.28712442,654.8,654.21,1.07510146]
[1751297679380,2.28712442,654.8,654.22,1.07510146]
[1751297679574,2.28712442,654.8,654.23,1.07510146]
[1751297679779,2.28712442,654.8,654.24,1.07510146]
[1751297679975,2.28712442,654.78,654.04,2.313]
[1751297680176,2.28712442,654.78,654.05,1.0751234]
[1751297680475,2.28712442,654.78,654.06,1.0751234]
[1751297680676,2.28712442,654.78,654.07,1.0751234]
[1751297680876,2.28712442,654.78,654.08,1.0751234]
[1751297681074,2.28712442,654.78,654.09,1.0751234]
[1751297681280,2.28712442,654.78,654.1,1.0751234]
[1751297681577,2.28712442,654.78,654.11,1.0751234]
[1751297681776,2.28712442,654.78,654.12,1.0751234]
[1751297681975,2.28712442,654.78,654.13,1.0751234]
[1751297682179,2.28712442,654.78,654.14,1.0751234]
[1751297682477,2.28712442,654.77,654.15,1.0751234]
[1751297682677,2.28712442,654.77,654.16,1.0751234]
[1751297682974,2.28712442,654.77,654.17,1.0751234]
[1751297683280,2.28712442,654.77,654.18,1.0751234]
[1751297683475,2.28712442,654.77,654.19,1.0751234]
[1751297683678,2.28712442,654.77,654.2,1.0751234]
[1751297683880,2.28712442,654.77,654.21,1.0751234]
[1751297684180,2.28712442,654.77,654.22,1.0751234]
[1751297684376,2.28712442,654.77,654.23,1.0751234]
[1751297684582,2.28712442,654.7,654.24,1.0751234]
[1751297684781,2.28712442,654.7,654.04,2.313]
[1751297684982,2.28712442,654.7,654.05,1.07500032]
[1751297685183,2.28712442,654.7,654.06,1.07500032]
[1751297685382,2.28712442,654.71,654.07,1.07500032]
[1751297685579,2.28712442,654.71,654.08,1.07500032]
[1751297685879,2.28712442,654.7,654.09,1.07500032]
[1751297686078,2.28712442,654.7,654.1,1.07500032]
[1751297686282,2.28712442,654.7,654.11,1.07500032]
[1751297686576,2.28712442,654.7,654.12,1.07500032]
[1751297686782,2.28712442,654.69,654.13,1.07500032]
[1751297686978,2.28712442,654.69,654.14,1.07500032]
[1751297687180,2.28712442,654.69,654.15,1.07500032]
[1751297687378,2.28712442,654.69,654.16,1.07500032]
[1751297687580,2.28712442,654.69,654.17,1.07500032]
[1751297687780,2.28712442,654.7,654.18,1.07500032]
[1751297687980,2.28712442,654.66,654.19,1.07500032]
[1751297688180,2.28712442,654.66,654.2,1.07500032]
[1751297688384,2.28712442,654.66,654.21,1.07500032]
[1751297688585,2.28712442,654.66,654.22,1.07500032]
[1751297688782,2.28712442,654.66,654.23,1.07500032]
[1751297688986,2.28712442,654.64,654.24,1.07500032]
[1751297689188,2.28712442,654.64,654.25,1.07500032]
[1751297689388,2.28712442,654.64,654.06,1.14780912]
[1751297689589,2.28712442,654.64,654.07,1.07513303]
[1751297689890,2.28712442,654.64,654.08,1.07513303]
[1751297690188,2.28712442,654.64,654.09,1.07513303]
[1751297690384,2.28712442,654.66,654.1,1.07513303]
[1751297690589,2.28712442,654.71,654.11,1.07513303]
[1751297690884,2.28712442,654.71,654.12,1.07513303]
[1751297691085,2.28712442,654.82,654.13,1.07513303]
[1751297691290,2.28712442,654.82,654.14,1.07513303]
[1751297691487,2.28712442,654.82,654.15,1.07513303]
[1751297691687,2.28712442,654.82,654.16,1.07513303]
[1751297691886,2.28712442,654.83,654.17,1.07513303]
[1751297692091,2.28712442,654.83,654.18,1.07513303]
[1751297692285,2.28712442,654.83,654.19,1.07513303]
[1751297692488,2.28712442,654.81,654.2,1.07513303]
[1751297692691,2.28712442,654.81,654.21,1.07513303]
[1751297692889,2.28712442,654.81,654.22,1.07513303]
[1751297693088,2.28712442,654.81,654.23,1.07513303]
[1751297693289,2.28712442,654.82,654.24,1.07513303]
[1751297693488,2.28712442,654.82,654.25,1.07513303]
[1751297693692,2.28712442,654.82,654.26,1.07513303]
[1751297693890,2.28712442,654.82,654.0,1.63]
[1751297694086,2.28712442,654.82,654.01,1.075074]
[1751297694291,2.28712442,654.82,654.02,1.075074]
[1751297694592,2.28712442,654.82,654.03,1.075074]
[1751297694789,2.28712442,654.82,654.04,1.075074]
[1751297694993,2.28712442,654.82,654.05,1.075074]
[1751297695193,2.28712442,654.82,654.06,1.075074]
[1751297695397,2.28712442,654.82,654.07,1.075074]
[1751297695590,2.28712442,654.78,654.08,1.075074]
[1751297695793,2.28712442,654.78,654.09,1.075074]
[1751297696089,2.28712442,654.84,654.1,1.075074]
[1751297696292,2.28712442,654.84,654.11,1.075074]
[1751297696491,2.28712442,654.84,654.12,1.075074]
[1751297696793,2.28712442,654.85,654.13,1.075074]
[1751297697092,2.28712442,654.85,654.14,1.075074]
[1751297697294,2.28712442,654.86,654.15,1.075074]
[1751297697494,2.28712442,654.85,654.16,1.075074]
[1751297697694,2.28712442,654.86,654.17,1.075074]
[1751297697990,2.28712442,654.91,654.18,1.075074]
[1751297698194,2.28712442,654.91,654.19,1.075074]
[1751297698393,2.28712442,654.91,654.2,1.075074]
[1751297698593,2.28712442,654.91,654.21,1.075074]
[1751297698796,2.28712442,654.93,654.22,1.075074]
[1751297698993,2.28712442,654.93,654.23,1.075074]
[1751297699195,2.28712442,654.94,654.24,1.075074]
[1751297699395,2.28712442,654.94,654.25,1.075074]
[1751297699595,2.28712442,654.94,654.26,1.075074]
[1751297699795,2.28712442,654.94,654.27,1.075074]
[1751297700000,2.28712442,654.93,654.28,1.075074]
[1751297700298,2.28712442,654.92,654.29,1.075074]
[1751297700495,2.28712442,654.93,654.3,1.075074]
[1751297700801,2.28712442,654.86,654.31,1.075074]
[1751297700996,2.28712442,654.86,654.32,1.075074]
[1751297701198,2.28712442,654.87,654.33,1.075074]
[1751297701395,2.28712442,654.87,654.34,1.075074]
[1751297701599,2.28712442,654.87,654.35,1.075074]
[1751297701896,2.28712442,654.86,654.13,1.14780912]
[1751297702098,2.28712442,654.87,654.14,1.0726514]
[1751297702298,2.28712442,654.87,654.15,1.0726514]
[1751297702502,2.28712442,654.87,654.16,1.0726514]
[1751297702702,2.28712442,654.87,654.17,1.0726514]
[1751297703002,2.28712442,654.96,654.18,1.0726514]
[1751297703200,2.28712442,655.0,654.19,1.0726514]
[1751297703399,2.28712442,655.0,654.2,1.0726514]
[1751297703598,2.28712442,655.0,654.21,1.0726514]
[1751297703800,2.28712442,654.96,654.22,1.0726514]
[1751297704000,2.28712442,654.96,654.23,1.0726514]
[1751297704203,2.28712442,654.96,654.24,1.0726514]
[1751297704399,2.28712442,654.96,654.25,1.0726514]
[1751297704698,2.28712442,654.96,654.04,1.14780912]
[1751297704699,2.28712442,654.96,654.26,1.0726514]
[1751297704901,2.28712442,654.96,654.27,1.0726514]
[1751297705102,2.28712442,654.96,654.28,1.0726514]
[1751297705402,2.28712442,655.0,654.29,1.0726514]
[1751297705600,2.28712442,655.0,654.3,1.0726514]
[1751297705797,2.28712442,655.1,654.11,1.14780912]
[1751297705999,2.28712442,654.98,654.12,1.07210389]
[1751297706199,2.28712442,654.99,654.13,1.07210389]
[1751297706400,2.28712442,654.99,654.14,1.07210389]
[1751297706603,2.28712442,654.98,654.15,1.07210389]
[1751297706799,2.28712442,654.99,654.16,1.07210389]
[1751297707103,2.28712442,654.99,654.0,1.63]
[1751297707104,2.28712442,655.0,654.17,1.07210389]
[1751297707300,2.28712442,654.99,654.18,1.07210389]
[1751297707501,2.28712442,655.0,654.19,1.07210389]
[1751297707698,2.28712442,655.0,654.2,1.07210389]
[1751297708000,2.28712442,654.96,654.21,1.07210389]
[1751297708301,2.28712442,654.93,654.22,1.07210389]
[1751297708503,2.28712442,654.93,654.23,1.07210389]
[1751297708802,2.28712442,654.92,654.24,1.07210389]
[1751297709003,2.28712442,654.92,654.25,1.07210389]
[1751297709203,2.28712442,654.92,654.26,1.07210389]
[1751297709401,2.28712442,654.92,654.0,1.63]
[1751297709605,2.28712442,654.92,654.01,1.07208261]
[1751297709804,2.28712442,654.91,654.02,1.07208261]
[1751297710002,2.28712442,654.9,654.03,1.07208261]
[1751297710203,2.28712442,654.9,654.04,1.07208261]
[1751297710405,2.28712442,654.9,654.05,1.07208261]
[1751297710604,2.28712442,654.9,654.06,1.07208261]
[1751297710803,2.28712442,654.9,654.07,1.07208261]
[1751297711002,2.28712442,654.9,654.08,1.07208261]
[1751297711302,2.28712442,654.9,654.09,1.07208261]
[1751297711501,2.28712442,654.9,654.1,1.07208261]
[1751297711706,2.28712442,654.9,654.11,1.07208261]
[1751297711905,2.28712442,654.9,654.12,1.07208261]
[1751297712102,2.28712442,654.9,654.13,1.07208261]
[1751297712308,2.28712442,654.9,654.14,1.07208261]
[1751297712506,2.28712442,654.9,654.15,1.07208261]
[1751297712704,2.28712442,654.9,654.16,1.07208261]
[1751297712904,2.28712442,654.9,654.17,1.07208261]
[1751297713107,2.28712442,654.9,654.18,1.07208261]
[1751297713306,2.28712442,654.9,654.19,1.07208261]
[1751297713508,2.28712442,654.9,654.2,1.07208261]
[1751297713807,2.28712442,654.9,654.21,1.07208261]
[1751297714009,2.28712442,654.9,654.22,1.07208261]
[1751297714208,2.28712442,654.9,654.23,1.07208261]
[1751297714406,2.28712442,654.9,654.24,1.07208261]
[1751297714605,2.28712442,654.9,654.0,1.63]
[1751297714805,2.28712442,654.9,654.01,1.07179778]
[1751297715108,2.28712442,654.87,654.02,1.07179778]
[1751297715309,2.28712442,654.86,654.03,1.07179778]
[1751297715510,2.28712442,654.86,654.04,1.07179778]
[1751297715807,2.28712442,654.86,654.05,1.07179778]
[1751297716107,2.28712442,654.86,654.06,1.07179778]
[1751297716410,2.28712442,654.86,654.07,1.07179778]
[1751297716607,2.28712442,654.81,654.08,1.07179778]
[1751297716808,2.28712442,654.81,654.09,1.07179778]
[1751297717004,2.28712442,654.81,654.1,1.07179778]
[1751297717208,2.28712442,654.81,654.11,1.07179778]
[1751297717408,2.28712442,654.81,654.12,1.07179778]
[1751297717609,2.28712442,654.81,654.13,1.07179778]
[1751297717812,2.28712442,654.81,654.14,1.07179778]
[1751297718009,2.28712442,654.82,654.15,1.07179778]
[1751297718309,2.28712442,654.83,654.16,1.07179778]
[1751297718509,2.28712442,654.83,654.17,1.07179778]
[1751297718815,2.28712442,654.85,654.18,1.07179778]
[1751297719020,2.28712442,654.85,654.19,1.07179778]
[1751297719216,2.28712442,654.85,654.2,1.07179778]
[1751297719512,2.28712442,654.85,654.05,1.14780912]
[1751297719513,2.28712442,654.89,654.21,1.07179778]
[1751297719711,2.28712442,654.89,654.22,1.07179778]
[1751297719914,2.28712442,654.89,654.23,1.07179778]
[1751297720111,2.28712442,654.94,654.24,1.07179778]
[1751297720314,2.28712442,654.94,654.25,1.07179778]
[1751297720613,2.28712442,654.94,654.26,1.07179778]
[1751297720816,2.28712442,654.95,654.27,1.07179778]
[1751297721115,2.28712442,654.95,654.28,1.07179778]
[1751297721316,2.28712442,654.96,654.29,1.07179778]
[1751297721616,2.28712442,654.96,654.3,1.07179778]
[1751297721915,2.28712442,654.96,654.31,1.07179778]
[1751297722115,2.28712442,654.95,654.32,1.07179778]
[1751297722313,2.28712442,654.98,654.33,1.07179778]
[1751297722517,2.28712442,654.98,654.34,1.07179778]
[1751297722816,2.28712442,654.98,654.35,1.07179778]
[1751297723016,2.28712442,654.98,654.36,1.07179778]
[1751297723217,2.28712442,654.98,654.37,1.07179778]
[1751297723514,2.28712442,654.98,654.38,1.07179778]
[1751297723713,2.28712442,654.98,654.15,1.14780912]
[1751297723918,2.28712442,655.01,654.18,1.14780912]
[1751297724117,2.28712442,655.03,654.19,2.21874675]
[1751297724416,2.28712442,655.04,654.2,1.07093763]
[1751297724620,2.28712442,655.04,654.21,1.07093763]
[1751297724818,2.28712442,655.04,654.22,1.07093763]
[1751297725014,2.28712442,655.05,654.23,1.07093763]
[1751297725216,2.28712442,655.05,654.24,1.07093763]
[1751297725420,2.28712442,655.05,654.25,1.07093763]
[1751297725619,2.28712442,655.05,654.26,1.07093763]
[1751297725820,2.28712442,655.05,654.27,1.07093763]
[1751297726019,2.28712442,655.04,654.28,1.07093763]
[1751297726218,2.28712442,655.05,654.29,1.07093763]
[1751297726520,2.28712442,655.05,654.3,2.92493763]
[1751297726718,2.28712442,655.05,654.31,1.07093763]
[1751297727018,2.28712442,655.05,654.32,1.07093763]
[1751297727217,2.28712442,655.05,654.33,1.07093763]
[1751297727417,2.28712442,655.05,654.34,1.07093763]
[1751297727617,2.28712442,655.05,654.35,1.07093763]
[1751297727817,2.28712442,655.05,654.36,1.07093763]
[1751297728021,2.28712442,655.05,654.37,1.07093763]
[1751297728221,2.28712442,655.12,654.38,1.07093763]
[1751297728521,2.28712442,655.12,654.39,1.07093763]
[1751297728721,2.28712442,655.12,654.4,1.07093763]
[1751297728922,2.28712442,655.12,654.3,1.854]
[1751297729120,2.28712442,655.11,654.31,1.06878513]
[1751297729316,2.28712442,655.11,654.32,1.06878513]
[1751297729620,2.28712442,655.11,654.33,1.06878513]
[1751297729920,2.28712442,655.11,654.34,1.06878513]
[1751297730117,2.28712442,655.11,654.35,1.06878513]
[1751297730319,2.28712442,655.11,654.36,1.06878513]
[1751297730521,2.28712442,655.11,654.37,1.06878513]
[1751297730720,2.28712442,655.1,654.38,1.06878513]
[1751297730918,2.28712442,655.1,654.39,1.06878513]
[1751297731123,2.28712442,655.11,654.3,1.854]
[1751297731319,2.28712442,655.11,654.31,1.06849392]
[1751297731521,2.28712442,655.11,654.32,1.06849392]
[1751297731718,2.28712442,655.1,654.33,1.06849392]
[1751297731922,2.28712442,655.09,654.34,1.06849392]
[1751297732123,2.28712442,655.1,654.35,1.06849392]
[1751297732323,2.28712442,655.21,654.36,1.06849392]
[1751297732624,2.28712442,655.26,654.37,1.06849392]
[1751297732820,2.28712442,655.27,654.38,1.06849392]
[1751297733020,2.28712442,655.27,654.39,1.06849392]
[1751297733221,2.28712442,655.27,654.4,1.06849392]
[1751297733521,2.28712442,655.27,654.3,1.854]
[1751297733721,2.28712442,655.27,654.31,1.0682681]
[1751297733927,2.28712442,655.27,654.32,1.0682681]
[1751297734123,2.28712442,655.27,654.33,1.0682681]
[1751297734326,2.28712442,655.27,654.34,1.0682681]
[1751297734525,2.28712442,655.27,654.35,1.0682681]
[1751297734727,2.28712442,655.27,654.36,1.0682681]
[1751297734924,2.28712442,655.27,654.37,1.0682681]
[1751297735125,2.28712442,655.28,654.38,1.0682681]
[1751297735325,2.28712442,655.28,654.39,1.0682681]
[1751297735528,2.28712442,655.27,654.3,1.854]
[1751297735725,2.28712442,655.27,654.31,1.06811188]
[1751297735925,2.28712442,655.33,654.32,1.06811188]
[1751297736125,2.28712442,655.33,654.33,1.06811188]
[1751297736324,2.28712442,655.33,654.34,1.06811188]
[1751297736627,2.28712442,655.31,654.35,1.06811188]
[1751297736828,2.28712442,655.31,654.36,1.06811188]
[1751297737028,2.28712442,655.31,654.37,1.06811188]
[1751297737324,2.28712442,655.32,654.38,1.06811188]
[1751297737528,2.28712442,655.32,654.39,1.06811188]
[1751297737830,2.28712442,655.32,654.3,1.854]
[1751297738028,2.28712442,655.32,654.31,1.06799051]
[1751297738324,2.28712442,655.32,654.32,1.06799051]
[1751297738526,2.28712442,655.32,654.33,1.06799051]
[1751297738826,2.28712442,655.27,654.34,1.06799051]
[1751297739130,2.28712442,655.26,654.35,1.06799051]
[1751297739326,2.28712442,655.26,654.36,1.06799051]
[1751297739535,2.28712442,655.2,654.37,1.06799051]
[1751297739729,2.28712442,655.2,654.38,1.06799051]
[1751297739926,2.28712442,655.2,654.3,1.854]
[1751297740125,2.28712442,655.2,654.31,1.06795087]
[1751297740329,2.28712442,655.2,654.32,1.06795087]
[1751297740526,2.28712442,655.21,654.33,1.06795087]
[1751297740725,2.28712442,655.21,654.34,1.06795087]
[1751297741025,2.28712442,655.21,654.35,1.06795087]
[1751297741230,2.28712442,655.21,654.36,1.06795087]
[1751297741430,2.28712442,655.21,654.37,1.06795087]
[1751297741627,2.28712442,655.21,654.38,1.06795087]
[1751297741828,2.28712442,655.11,654.3,1.854]
[1751297742028,2.28712442,655.11,654.31,1.06818718]
[1751297742233,2.28712442,655.11,654.32,1.06818718]
[1751297742429,2.28712442,655.14,654.33,1.06818718]
[1751297742730,2.28712442,655.14,654.34,1.06818718]
[1751297742929,2.28712442,655.14,654.35,1.06818718]
[1751297743130,2.28712442,655.14,654.36,1.06818718]
[1751297743329,2.28712442,655.14,654.37,1.06818718]
[1751297743629,2.28712442,655.13,654.38,1.06818718]
[1751297743933,2.28712442,655.13,654.3,1.854]
[1751297744231,2.28712442,655.13,654.31,1.06824577]
[1751297744534,2.28712442,655.15,654.32,1.06824577]
[1751297744730,2.28712442,655.15,654.33,1.06824577]
[1751297744929,2.28712442,655.15,654.34,1.06824577]
[1751297745133,2.28712442,655.15,654.35,1.06824577]
[1751297745333,2.28712442,655.15,654.36,1.06824577]
[1751297745533,2.28712442,655.15,654.37,1.06824577]
[1751297745733,2.28712442,655.15,654.38,1.06824577]
[1751297746028,2.28712442,655.15,654.39,1.06824577]
[1751297746229,2.28712442,655.15,654.4,1.06824577]
[1751297746433,2.28712442,655.15,654.3,1.854]
[1751297746635,2.28712442,655.15,654.31,1.06818862]
[1751297746833,2.28712442,655.15,654.32,1.06818862]
[1751297747037,2.28712442,655.15,654.33,1.06818862]
[1751297747236,2.28712442,655.14,654.34,1.06818862]
[1751297747437,2.28712442,655.14,654.35,1.06818862]
[1751297747637,2.28712442,655.12,654.36,1.06818862]
[1751297747835,2.28712442,655.12,654.37,1.06818862]
[1751297748030,2.28712442,655.12,654.38,1.06818862]
[1751297748233,2.28712442,655.16,654.39,1.06819306]
[1751297748434,2.28712442,655.16,654.4,1.06819306]
[1751297748735,2.28712442,655.16,654.41,1.06819306]
[1751297748935,2.28712442,655.17,654.42,1.06819306]
[1751297749138,2.28712442,655.17,654.3,1.854]
[1751297749437,2.28712442,655.17,654.31,1.06821987]
[1751297749635,2.28712442,655.19,654.32,1.06821987]
[1751297749934,2.28712442,655.19,654.33,1.06821987]
[1751297750237,2.28712442,655.19,654.34,1.06821987]
[1751297750437,2.28712442,655.18,654.35,1.06821987]
[1751297750635,2.28712442,655.18,654.36,1.06821987]
[1751297750839,2.28712442,655.18,654.37,1.06821987]
[1751297751141,2.28712442,655.18,654.38,1.06821987]
[1751297751335,2.28712442,655.18,654.39,1.06821987]
[1751297751538,2.28712442,655.18,654.4,1.06821987]
[1751297751739,2.28712442,655.18,654.41,1.06821987]
[1751297751940,2.28712442,655.18,654.42,1.06821987]
[1751297752140,2.28712442,655.18,654.43,1.06821987]
[1751297752436,2.28712442,655.13,654.3,1.854]
[1751297752738,2.28712442,655.12,654.31,1.06836329]